Cogmind - Beta 9.4 @@@ ROGUE MODE // 2020.02.19 @ 17:32:58 Player: Lyft Result: Destroyed by S-10 Pest with Light Assault Rifle Performance ------------- Evolutions (0) 0 Regions Visited (1) 200 Robots Destroyed (13) 65 Value Destroyed (170) 170 Prototype IDs (0) 0 Alien Tech Used (0) 0 Bonus (0) 0 TOTAL SCORE: 435 Bonus ------- None Cogmind --------- Core Integrity 0/250 Matter 287/300 Energy 100/100 System Corruption 0% Temperature Cool (0) Movement Core (50) Location -10/Materials Parts ------- > --- POWER (1) -------- (None) > --- PROPULSION (2) --- (None) > --- UTILITY (2) ------ Structural Scanner Seismic Analyzer > --- WEAPON (2) ------- (None) > --- INVENTORY (4) ---- Light Ion Engine Light Assault Rifle Grenade Launcher Mining Laser Peak State ------------ > --- POWER ------------ Light Ion Engine > --- PROPULSION ------- Aluminum Leg Aluminum Leg > --- UTILITY ---------- Small Matter Pod Seismic Analyzer > --- WEAPON ----------- Light Assault Rifle Light Assault Rifle > --- INVENTORY -------- Ion Engine Wheel Wheel Light Assault Rifle [Rating: 7] Favorites ----------- Power Light Ion Engine Engine Light Ion Engine Propulsion Aluminum Leg Leg Aluminum Leg Wheel Wheel Utility Seismic Analyzer Device Structural Scanner Storage Small Matter Pod Processor Seismic Analyzer Weapon Light Assault Rifle Ballistic Gun Light Assault Rifle Build | -11 -10 ------- Run | Scr Mat Slots Evolved . | . . Power . | . . Propulsion . | . . Utility . | . . Weapon . | . . Parts Attached 16 | 7 9 Power 5 | 1 4 Engine 5 | 1 4 Core . | . . Reactor . | . . Propulsion 4 | 2 2 Treads . | . . Leg 2 | 2 . Wheel 2 | . 2 Hover . | . . Flight . | . . Utility 3 | 2 1 Device 1 | . 1 Storage 1 | 1 . Processor 1 | 1 . Hackware . | . . Protection . | . . Artifact . | . . Weapon 4 | 2 2 Energy Gun . | . . Energy Cannon . | . . Ballistic Gun 4 | 2 2 Ballistic Cannon . | . . Launcher . | . . Special Weapon . | . . Impact Weapon . | . . Slashing Weapon . | . . Piercing Weapon . | . . Special Melee Weapon . | . . Unidentified Prototypes . | . . Parts Lost 7 | . 7 Power 1 | . 1 Propulsion 3 | . 3 Utility . | . . Weapon 3 | . 3 Highest Loss Streak 5 | . 5 Average Slot Usage (%) 93 | . 93 Engine 13 | . 13 Leg 19 | . 19 Wheel 4 | . 4 Device 11 | . 11 Storage 2 | . 2 Processor 14 | . 14 Ballistic Gun 25 | . 25 Naked Turns . | . . Heaviest Build 6 | 6 6 Greatest Support 20 | 20 20 Greatest Overweight (x) . | . . Average Overweight (x) . | . . Largest Inventory Capacity 4 | 4 4 Average Capacity 4 | 4 4 Most Carried 4 | 4 4 Average Carried 3 | 2 3 Final Capacity 4 | 4 4 Final Carried 4 | 4 4 Class Distribution -------------------- 89% | Mutant 10% | Scavenger-Mutant Dominant Class ---------------- Mutant | -10/Materials Resources | -11 -10 ----------- Run | Scr Mat Matter Collected 478 | 344 134 Remotely . | . . Salvage Created 485 | 71 414 Parts 26 | 4 22 Haulers Intercepted . | . . Recyclers Shooed 2 | . 2 Parts Field Recycled . | . . Retrieved Matter . | . . Parts Self-Destructed . | . . Prevented . | . . Kills | -11 -10 ------- Run | Scr Mat Combat Hostiles Destroyed 6 | 1 5 Guns 6 | 1 5 Classes Destroyed 6 | 3 3 Worker 1 | 1 . Builder 1 | . 1 Tunneler 2 | 1 1 Recycler 3 | . 3 Swarmer 3 | . 3 Grunt 3 | 1 2 Best Kill Streak 4 | 1 4 Combat Bots Only 3 | 1 3 Max Kills in Single Turn 1 | 1 1 Gunslinging . | . . Exploded . | . . Melee . | . . Uniques/NPCs Destroyed . | . . Combat | -11 -10 -------- Run | Scr Mat Damage Taken 920 | 43 877 Core 259 | 32 227 Absorbed by Shields . | . . Core Remaining (%) 87 | 87 . Volleys Fired 65 | 12 53 Largest 2 | 2 2 Hottest 40 | 40 40 Shots Fired 116 | 24 92 Gun 116 | 24 92 Cannon . | . . Launcher . | . . Special . | . . Kinetic 116 | 24 92 Thermal . | . . Explosive . | . . Electromagnetic . | . . Robot Hit Streak 10 | 8 10 Robot Miss Streak 4 | 2 4 Penetration Max . | . . Secondary Targets 1 | . 1 Max Gunslinging Chain 1 | . 1 Shots Hit Robots 66 | 15 51 Core Hits 32 | 9 23 Critical Hits 2 | . 2 Critical Kills 1 | . 1 Critical Parts Destroyed 1 | . 1 Melee Attacks . | . . Impact . | . . Slashing . | . . Piercing . | . . Sneak Attacks . | . . Combat Hostiles . | . . Follow-up Attacks . | . . Damage Inflicted 569 | 142 427 Guns 569 | 142 427 Cannons . | . . Explosions . | . . Melee . | . . Ramming . | . . Kinetic 569 | 142 427 Thermal . | . . Explosive . | . . Electromagnetic . | . . Impact . | . . Slashing . | . . Piercing . | . . Highest Corruption . | . . Average Corruption . | . . Corruption Purged . | . . Overload Shots . | . . Overflow Damage . | . . Projectiles . | . . Explosions . | . . Melee . | . . Knockbacks . | . . Impact . | . . Kinetic . | . . Secondary . | . . Self-Inflicted Damage . | . . Shots . | . . Rammed . | . . Targets Rammed . | . . Kicked . | . . Crushed . | . . Highest Temperature 28 | 18 28 Average Temperature 12 | 10 12 Received Heat Transfer 156 | 24 132 Siege Activations . | . . Robots Corrupted . | . . Combat Hostiles . | . . Parts Fried . | . . Impact Corruptions . | . . Robots Melted . | . . Combat Hostiles . | . . Parts Melted . | . . Heat Transferred . | . . Parts Sabotaged . | . . Parts Stolen . | . . Parts Stripped . | . . Power Chain Reactions . | . . Missiles Intercepted . | . . Alert | -11 -10 ------- Run | Scr Mat Peak Influence 159 | 30 159 Average Influence 58 | 12 80 Maximum Alert Level . | . . Low Security (%) 100 | 100 100 Level 1 . | . . Level 2 . | . . Level 3 . | . . Level 4 . | . . Level 5 . | . . High Security . | . . Max Security . | . . Squads Dispatched 1 | . 1 Investigation 1 | . 1 Extermination . | . . Reinforcement . | . . Assault . | . . Garrison . | . . Intercept . | . . Construction Impeded . | . . Haulers Reinforced . | . . Stealth | -11 -10 --------- Run | Scr Mat Distress Signals 1 | . 1 Communications Jammed . | . . Distress Signals . | . . Times Spotted 14 | 1 13 Peak Tracking Total 6 | 1 6 Tactical Retreats 1 | . 1 Traps | -11 -10 ------- Run | Scr Mat Traps Triggered 1 | . 1 Indirectly . | . . Trap Hack Attempts . | . . Triggered . | . . Disarmed . | . . Reprogrammed . | . . Reused . | . . Traps Extracted . | . . Installed . | . . Triggered . | . . Machines | -11 -10 ---------- Run | Scr Mat Machines Disabled . | . . Max in Single Turn . | . . Machines Sabotaged . | . . Garrisons Compromised . | . . Overloaded Fab Kills . | . . Fab Network Shutdowns . | . . Hacking | -11 -10 --------- Run | Scr Mat Machines Accessed . | . . Terminals . | . . Fabricators . | . . Repair Stations . | . . Recycling Units . | . . Scanalyzers . | . . Garrison Access . | . . Total Hacks . | . . Successful . | . . Failed . | . . Catastrophic . | . . Database Lockouts . | . . Manual . | . . Terminals . | . . Fabricators . | . . Repair Stations . | . . Recycling Units . | . . Scanalyzers . | . . Garrison Access . | . . Terminal Hacks . | . . Fabricator Hacks . | . . Repair Station Hacks . | . . Recycling Unit Hacks . | . . Scanalyzer . | . . Garrison Access Hacks . | . . Unauthorized Hacks . | . . Terminals . | . . Fabricators . | . . Repair Stations . | . . Recycling Units . | . . Scanalyzers . | . . Garrison Access . | . . Data Cores Recovered . | . . Used . | . . Hacking Detections . | . . Full Trace Events . | . . Feedback Events . | . . Feedback Blocked . | . . Robot Schematics Acquired . | . . Robots Built . | . . Matter . | . . Time . | . . Total Robot Build Rating . | . . Part Schematics Acquired . | . . Parts Built . | . . Matter . | . . Time . | . . Total Part Build Rating . | . . Parts Repaired . | . . Time . | . . Parts Recycled . | . . Recycled Matter . | . . Retrieved Matter . | . . Retrieved Components . | . . Parts Scanalyzed . | . . Part Schematics Acquired . | . . Parts Damaged . | . . Bothacking | -11 -10 ------------ Run | Scr Mat Used RIF Installer . | . . Robots Hacked . | . . Non-combat . | . . Combat . | . . Robot Hacks Applied . | . . Relay Couplers Released . | . . Robots Rewired . | . . Allies Hacked . | . . Hacks Repelled . | . . Allies | -11 -10 -------- Run | Scr Mat Total Allies . | . . Largest Group . | . . Highest-Rated Group . | . . Highest-Rated Ally . | . . Total Orders . | . . Ally Attacks . | . . Total Damage . | . . Kills . | . . Allies Corrupted . | . . Allies Melted . | . . Intel | -11 -10 ------- Run | Scr Mat Robot Analysis Total . | . . Derelict Logs Recovered . | . . Drone Launches . | . . Drone Recoveries . | . . Exploration | -11 -10 ------------- Run | Scr Mat Turns Passed 508 | 165 343 Spaces Moved 264 | 107 157 Core 19 | 18 1 Treads . | . . Legs 221 | 89 132 Wheels 24 | . 24 Hover . | . . Flight . | . . Fastest Speed 50 | 50 50 Average Speed 111 | 108 113 Slowest Speed 120 | 120 120 Overloaded Moves . | . . Propulsion Burnouts . | . . Robots Hopped . | . . Cave-ins Triggered . | . . Exploration Rate (%) 15 | 5 25 Regions Visited 1 Branch Regions . Pre-discovered Areas . | . . Known Exits Taken . | . . Unknown Exits Taken 1 | 1 . Scrap Searched . | . . Spaces Dug . | . . Terrain Destroyed . | . . Melee . | . . Projectile . | . . AOE . | . . Actions | -11 -10 --------- Run | Scr Mat Total 389 | 137 252 Wait 21 | . 21 Move 263 | 106 157 Hop . | . . Pick Up 14 | 11 3 Fast Attach 4 | 1 3 Attach 6 | 6 . Detach . | . . Swap 6 | . 6 Drop 10 | 1 9 Fire 65 | 12 53 Melee . | . . Ram . | . . Kick . | . . Crush . | . . Escape Stasis . | . . Rewire . | . . Trap . | . . Miscellaneous . | . . Route ------- -11/Scrapyard -10/Materials History --------- Turn | Location | Event 2 | -11/Scrapyard | Met Revision 17 76 | -11/Scrapyard | Discovered new exit (range 8) 166 | -11/Scrapyard | Entered Materials 318 | -10/Materials | Build established: Mutant 494 | -10/Materials | Core integrity fell below 50% 505 | -10/Materials | Core integrity fell below 20% 509 | -10/Materials | Destroyed by S-10 Pest with Light Assault Rifle Last Messages --------------- Acquired Wheel. Different forms of propulsion may not be used simultaneously, Aluminum Leg automatically deactivated. Dropped Aluminum Leg. Acquired Wheel. U-05 Engineer destroyed. Acquired 19 matter. R-06 Scavenger destroyed. Switching to secondary target: S-10 Pest. A-02 Transporter suffers critical hit. Destroyed Lgt. Treads. Wheel destroyed. Lgt. Assault Rifle destroyed. Lgt. Ion Engine destroyed. Wheel destroyed. K-01 Serf collects debris. Lgt. Assault Rifle destroyed. K-01 Serf collects debris. R-06 Scavenger collects Heat Sink. K-01 Serf collects debris. Map ----- +----------------------------------------------------+ | ?????????????????????????????????????????????????? | | ?????????????????????????????????????????????????? | | ?????????????????????????????????????????????????? | | ?????????????????????????????????????????????????? | | ?????????????????????????????????????????????????? | | ?????????????????????????????????????????????????? | | ?????????????????????????????????????????????????? | | ?????????????????????????????????????????????????? | | ?????????????????????????????????????????????????? | | ?????????????????????????????????????????????????? | | ?????????????????????????????????????????????????? | | ?????????????????????????????????????????????????? | | ?????????????????????????????????????????????????? | | ?????????????????????????????????????????????????? | | ?????????????????????????????????????????????????? | | ?????????????????????????????????????????????????? | | ?????????????????????????????????????????????????? | | ???????????????????????#################?????????? | | ???????????????????????# #??######## | | ??????????????? ######## #??# # | | ???????????????? #??# """ # | | ???????????????? ^ ^ #??# """ # | | ????????????????""" """" """" """" #??# """ # | | ???????????????"""" """"^ """" """" #??# # | | ??????????? """"^ """"s """" """" #??# =* # | | ?????????? s@ #######+### | | ?????????? ! s = *%= * | | ?????????? =% k| * [= | | ?????????? ! = r %[ | | ?????????? #""T""###/######### # | | ???????????### #"""""#???????????# # | | ?????????????# #######???????????# # | | ?????????????# ?????????????????# # | | ?????????????# ######????????????????# # | | ?????????????# ??????????????????????# # | | ?????????????######## ??????????????????????# # | | ????????????????????# ??????????????????????# # | | ????????????????????# ??????????????????????# # | | ????????????????????# ??????????????????????# # | | ????????????????????# ???????????????????????# # | | ????????????????????# ??????????????#????????# # | | ????????????????????# ???????????????# ??????# # | | ????????????????????? ???????????????# ????# # | | ?????????????????????????????????????# !]??# # | | ?????????????????????????????????????# =] # !# | | ?????????????????????????????????????# =] +%%+ | | ?????????????????????????????????????# #[[# | | ?????????????????????????????????????# ??#* # | | ?????????????????????????????????????# ????#%=# | | ????????????????????????????????????########### # | +----------------------------------------------------+ Best States ------------- Heat Dissipation 25 Energy Generation 10 Energy Capacity 125 Matter Stores 350 Matter Capacity 350 Sight Range 16 Terrain Scan Density 60 Evasion (%) 50 Item Schematics ----------------- None Robot Schematics ------------------ None Fabricated ------------ Nothing Alien Tech Used ----------------- None Achievements -------------- Crack Shot Challenges ------------ None Game ------ Seed BottomlessSalvageWings Manual? 0 Play Time 00:12:05 Cumulative 0.7 hours Start 2020.02.19 @ 17:24:04 End 2020.02.19 @ 17:32:58 Sessions 1 Manual Loads 0 Difficulty Rogue Special Mode None Game No. 2 Rogue 2 Adventurer 0 Explorer 0 Win Type - Total 0 Types 0/0/0/0/0/0/0 Lore% 0 Gallery% 1 Achievement% 1 Wizard Run 0 Options --------- ASCII 0 Keyboard 0 Movement Mouse Keybinds 0 Fullscreen 1 Font 24/Terminus Map View 76x50 Tactical HUD 0 Map Filters NONE Filters NONE Steam 1 RUN: 69dc141e-ef57-4bbc-a37f-028b150cfbbc